bitfinex-derivatives/quotes_SOLF0:USTF0_20241224
["timestamp","ask_amount","ask_price","bid_price","bid_amount"]
[1735078533626,2.5366,197.26,197.24,21.10143447]
[1735078533821,2.5366,197.26,197.25,73.47425527]
[1735078534222,3.58,197.29,197.25,73.47425527]
[1735078534424,3.58,197.29,197.25,213.09018896]
[1735078534824,7.94931306,197.28,197.25,213.09018896]
[1735078535025,7.94931306,197.28,197.27,76.78722437]
[1735078535325,3.58,197.29,197.27,76.78722437]
[1735078535530,10.48561306,197.28,197.27,76.78722437]
[1735078536627,2.5364,197.27,197.26,76.78722437]
[1735078537329,2.5364,197.27,197.26,131.16518636]
[1735078539125,2.5364,197.27,197.26,128.66308636]
[1735078539324,2.5364,197.27,197.26,126.16098636]
[1735078539527,10.48571306,197.27,197.26,126.16098636]
[1735078540124,2.5367,197.25,197.24,55.84525409]
[1735078540322,3.58,197.27,197.24,55.84525409]
[1735078540729,3.58,197.27,197.24,177.26580442]
[1735078540929,6.1166,197.27,197.24,177.26580442]
[1735078541324,6.1166,197.27,197.26,83.76788114]
[1735078541725,6.1166,197.27,197.26,54.13037663]
[1735078543245,6.1166,197.27,197.26,137.89591221]
[1735078543833,6.1166,197.27,197.26,177.26345886]
[1735078544433,3.58,197.27,197.26,201.70845435]
[1735078545434,6.1166,197.27,197.26,201.70845435]
[1735078546125,6.1166,197.27,197.26,152.49902105]
[1735078547031,14.06591306,197.27,197.26,152.49902105]
[1735078547435,2.5371,197.22,197.21,55.81444541]
[1735078548040,2.5371,197.22,197.21,22.45819122]
[1735078549743,10.48641306,197.22,197.21,22.45819122]
[1735078550645,10.48641306,197.22,197.21,4.49163824]
[1735078551843,2.5376,197.18,197.17,55.81444541]
[1735078552244,2.5376,197.18,197.17,105.23423011]
[1735078554644,2.5374,197.2,197.17,113.18354317]
[1735078554843,3.58,197.25,197.19,7.94931306]
[1735078555039,3.58,197.25,197.19,147.49114872]
[1735078555242,2.5372,197.22,197.19,147.49114872]
[1735078555442,2.5372,197.22,197.21,7.94931306]
[1735078555645,2.5372,197.22,197.2,188.96162036]
[1735078556044,2.5372,197.22,197.21,196.91093342]
[1735078556845,2.5372,197.22,197.21,141.06454282]
[1735078557549,2.5372,197.22,197.21,49.4197847]
[1735078558744,2.5372,197.22,197.21,167.51659545]
[1735078559448,2.5372,197.22,197.21,49.4197847]
[1735078560754,2.5372,197.22,197.21,83.83172808]
[1735078560955,3.9245,197.38,197.21,91.78104114]
[1735078561149,7.94931306,197.32,197.23,7.94931306]
[1735078561349,7.94931306,197.3,197.23,7.94931306]
[1735078561550,2.5367,197.26,197.25,55.7918433]
[1735078561946,2.5367,197.26,197.25,105.211628]
[1735078562350,10.48601306,197.26,197.25,105.211628]
[1735078562548,10.48601306,197.26,197.25,22.4635385]
[1735078563353,10.48601306,197.26,197.25,4.4927077]
[1735078564754,10.48601306,197.26,197.25,21.70299686]
[1735078565956,2.5367,197.26,197.25,21.70299686]
[1735078567452,2.5367,197.26,197.25,4.4927077]
[1735078569452,7.94931306,197.35,197.25,50.64402944]
[1735078569657,7.94931306,197.35,197.27,7.94931306]
[1735078569850,2.5362,197.3,197.27,7.94931306]
[1735078570355,2.5362,197.3,197.29,55.7918433]
[1735078570955,2.5362,197.3,197.29,47.56454261]
[1735078572558,11.49990832,197.44,197.29,47.56454261]
[1735078572758,7.94931306,197.34,197.29,47.56454261]
[1735078573564,2.5362,197.3,197.29,55.75535306]
[1735078574364,2.5362,197.3,197.29,77.24244703]
[1735078574962,2.5362,197.3,197.29,103.01789995]
[1735078579364,7.94931306,197.35,197.29,103.01789995]
[1735078580365,2.5356,197.34,197.3,42.35539336]
[1735078580560,7.94931306,197.35,197.3,42.35539336]
[1735078581258,7.94931306,197.35,197.31,4.29741879]
[1735078581867,3.2822,197.44,197.32,7.94931306]
[1735078582069,7.94931306,197.41,197.32,7.94931306]
[1735078582258,3.42,197.43,197.32,7.94931306]
[1735078582461,7.94931306,197.41,197.32,7.94931306]
[1735078582658,7.94931306,197.41,197.33,42.23121826]
[1735078583263,2.535,197.39,197.34,7.94931306]
[1735078583671,7.94931306,197.42,197.34,42.23121826]
[1735078584266,2.5352,197.38,197.35,4.27258377]
[1735078585168,7.94931306,197.4,197.33,20.86829939]
[1735078586069,7.94931306,197.4,197.32,28.81761245]
[1735078586975,2.5353,197.36,197.33,4.18729029]
[1735078587869,7.94931306,197.4,197.33,4.18729029]
[1735078588174,0.17839,197.45,197.36,7.94931306]
[1735078588372,0.17839,197.45,197.38,7.94931306]
[1735078588570,2.5344,197.43,197.39,2.5349]
[1735078588868,2.5344,197.43,197.39,4.1789]
[1735078589173,0.17839,197.45,197.39,4.1789]
[1735078590464,0.17839,197.45,197.42,7.94931306]
[1735078590671,0.17839,197.45,197.44,7.94931306]
[1735078590865,0.17839,197.45,197.42,7.94931306]
[1735078591069,0.17839,197.45,197.39,1.644]
[1735078591070,2.5343,197.44,197.4,7.94931306]
[1735078592071,2.5344,197.43,197.4,7.94931306]
[1735078592670,2.5344,197.43,197.42,7.94931306]
[1735078592869,0.17839,197.45,197.42,7.94931306]
[1735078593777,0.17839,197.45,197.41,2.5346]
[1735078593975,0.17839,197.45,197.43,7.94931306]
[1735078594378,0.17839,197.45,197.41,10.48391306]
[1735078594678,3.32,197.57,197.43,7.94931306]
[1735078594977,7.94931306,197.52,197.45,7.94931306]
[1735078595879,2.5336,197.5,197.45,10.48341306]
[1735078596380,4.8727,197.58,197.49,7.94931306]
[1735078596676,1.11030008,197.63,197.51,7.94931306]
[1735078596873,7.94931306,197.58,197.5,7.94931306]
[1735078597268,4.41030008,197.63,197.49,1.6118]
[1735078597471,7.94931306,197.62,197.54,7.94931306]
[1735078597967,7.94931306,197.6,197.5,3.3]
[1735078598178,1.11030008,197.63,197.51,7.94931306]
[1735078598374,7.94931306,197.59,197.51,7.94931306]
[1735078598681,2.5328,197.56,197.53,7.94931306]
[1735078599177,7.94931306,197.59,197.53,7.94931306]
[1735078599372,2.5325,197.58,197.53,7.94931306]
[1735078599876,7.94931306,197.64,197.55,7.94931306]
[1735078600777,2.5323,197.6,197.55,7.94931306]
[1735078601880,2.5323,197.6,197.55,10.48211306]
[1735078602278,7.94931306,197.63,197.55,7.94931306]
[1735078602478,2.5324,197.59,197.55,7.94931306]
[1735078603477,7.94931306,197.64,197.55,7.94931306]
[1735078604075,2.532,197.62,197.55,7.94931306]
[1735078604272,7.94931306,197.64,197.55,7.94931306]
[1735078605780,7.94931306,197.64,197.57,20.86829939]
[1735078606280,2.532,197.62,197.57,20.86829939]
[1735078606585,7.94931306,197.64,197.58,4.1417491]
[1735078607385,7.94931306,197.64,197.57,20.86829939]
[1735078608186,7.94931306,197.64,197.58,37.43188099]
[1735078608581,2.5323,197.59,197.58,37.43188099]
[1735078608783,2.5323,197.59,197.58,20.86829939]
[1735078609481,1.5403,197.66,197.58,20.86829939]
[1735078609687,7.94931306,197.65,197.57,7.94931306]
[1735078610282,2.5322,197.61,197.57,7.94931306]
[1735078610486,7.94931306,197.65,197.57,7.94931306]
[1735078610887,2.5322,197.6,197.58,4.03262491]
[1735078611187,7.94931306,197.63,197.58,4.03262491]
[1735078611583,7.94931306,197.63,197.57,7.94931306]
[1735078611985,1.5403,197.66,197.57,7.94931306]
[1735078612181,7.94931306,197.62,197.56,20.86829939]
[1735078612486,2.5326,197.57,197.56,20.86829939]
[1735078613385,7.94931306,197.57,197.54,20.86829939]
[1735078613687,2.5329,197.55,197.54,20.86829939]
[1735078614484,2.5332,197.52,197.51,20.86829939]
[1735078615189,2.5331,197.53,197.51,4.0207172]
[1735078616185,2.5331,197.53,197.52,40.98381269]
[1735078617079,7.94931306,197.59,197.52,40.98381269]
[1735078617688,2.533,197.55,197.52,40.98381269]
[1735078617889,11.24931306,197.61,197.53,40.98381269]
[1735078618390,2.5326,197.57,197.54,7.94931306]
[1735078618694,7.94931306,197.61,197.53,40.98381269]
[1735078618885,7.94931306,197.61,197.54,40.98381269]
[1735078619392,2.5328,197.56,197.54,40.98381269]
[1735078619581,7.94931306,197.61,197.54,40.98381269]
[1735078619987,3.1944,197.65,197.54,40.98381269]
[1735078620188,7.94931306,197.6,197.55,40.98381269]
[1735078620796,2.5328,197.56,197.55,40.98381269]
[1735078620989,2.5328,197.56,197.55,20.86829939]
[1735078621695,3.3,197.58,197.55,4.04094653]
[1735078621888,2.5327,197.56,197.55,4.04094653]
[1735078622492,2.5327,197.56,197.55,41.08739665]
[1735078623493,11.18931306,197.59,197.55,41.08739665]
[1735078623890,11.18931306,197.59,197.55,100.2665661]
[1735078624288,11.18931306,197.59,197.56,41.00087114]
[1735078624483,11.18931306,197.59,197.56,38.49747114]
[1735078624484,7.94931306,197.57,197.56,38.49747114]
[1735078625093,11.18931306,197.59,197.55,20.78177388]
[1735078625696,2.5327,197.56,197.55,20.78177388]
[1735078626896,2.5327,197.56,197.55,83.98542811]
[1735078628796,2.5327,197.56,197.55,28.23007505]
[1735078632494,2.5323,197.6,197.55,28.23007505]
[1735078632695,3.1944,197.65,197.55,36.17938811]
[1735078632901,7.94931306,197.63,197.55,36.17938811]
[1735078633091,7.94931306,197.63,197.59,20.8825277]
[1735078634196,2.5321,197.61,197.6,4.03286786]
[1735078634602,1.1320303,197.68,197.6,4.03286786]
[1735078634998,7.94931306,197.67,197.6,83.97384031]
[1735078635901,7.94931306,197.67,197.63,20.86709427]
[1735078636304,2.5317,197.65,197.63,20.86709427]
[1735078636804,10.48101306,197.65,197.64,4.03286786]
[1735078637903,7.94931306,197.65,197.62,20.86709427]
[1735078638105,10.48111306,197.63,197.62,20.86709427]
[1735078638311,2.5318,197.63,197.62,20.86709427]
[1735078639009,2.5318,197.63,197.59,20.86709427]
[1735078639901,2.5318,197.63,197.6,4.03770337]
[1735078640806,2.5318,197.63,197.59,20.86709427]
[1735078641811,2.5322,197.61,197.59,20.86709427]
[1735078642101,3.24,197.71,197.59,20.86709427]
[1735078642305,7.94931306,197.67,197.58,28.81640733]
[1735078643202,7.94931306,197.67,197.6,2.5322]
[1735078643401,7.94931306,197.67,197.59,24.90456679]
[1735078643997,2.5318,197.63,197.59,24.90456679]
[1735078644205,7.94931306,197.65,197.59,24.90456679]
[1735078644501,7.94931306,197.65,197.6,4.03747252]
[1735078644998,2.5322,197.6,197.57,20.86709427]
[1735078645707,2.5319,197.63,197.58,11.98575381]
[1735078646403,7.94931306,197.65,197.58,4.03644075]
[1735078646608,2.5323,197.6,197.59,4.03644075]
[1735078647505,3.24,197.7,197.59,11.98575381]
[1735078647800,7.94931306,197.67,197.59,13.64775381]
[1735078648209,2.532,197.62,197.59,13.64775381]
[1735078648612,2.532,197.62,197.59,9.61131306]
[1735078650015,2.5318,197.64,197.6,2.5322]
[1735078651212,2.5318,197.63,197.59,12.14361306]
[1735078652114,2.532,197.62,197.59,9.61131306]
[1735078652711,7.94931306,197.66,197.59,1.662]
[1735078652917,7.94931306,197.62,197.58,20.86709427]
[1735078653520,7.94931306,197.62,197.56,20.86709427]
[1735078654411,3.24,197.7,197.57,2.5325]
[1735078654412,2.5319,197.63,197.57,2.5325]
[1735078654612,2.5319,197.63,197.59,7.94931306]
[1735078655218,7.94931306,197.66,197.59,7.94931306]
[1735078655416,2.5322,197.61,197.58,20.86709427]
[1735078656019,3.24,197.7,197.58,20.86709427]
[1735078656217,3.24,197.7,197.59,4.03535782]
[1735078656426,7.94931306,197.64,197.59,4.03535782]
[1735078657527,7.94931306,197.64,197.57,20.86709427]
[1735078658525,7.94931306,197.64,197.58,4.0376637]
[1735078659028,7.94931306,197.62,197.58,4.0376637]
[1735078659426,7.94931306,197.62,197.56,20.86709427]
[1735078660030,2.5322,197.6,197.56,20.86709427]
[1735078660330,2.5322,197.6,197.57,4.04088545]
[1735078660830,2.5324,197.59,197.57,4.04088545]
[1735078661426,2.5324,197.59,197.56,20.86709427]
[1735078662032,2.5324,197.59,197.55,31.34920733]
[1735078662234,2.5322,197.61,197.57,2.5325]
[1735078663134,2.5323,197.6,197.56,20.86709427]
[1735078664735,2.5323,197.6,197.57,4.04612575]
[1735078665334,2.5323,197.6,197.57,24.91322002]
[1735078665536,2.5323,197.6,197.58,4.04612575]
[1735078666038,2.5323,197.6,197.59,4.04612575]
[1735078666833,7.94931306,197.64,197.59,4.04612575]
[1735078667034,7.94931306,197.62,197.59,4.04612575]
[1735078667433,7.94931306,197.6,197.59,4.04612575]
[1735078667740,7.94931306,197.6,197.57,20.86709427]
[1735078668531,3.22,197.65,197.57,20.86709427]
[1735078668532,10.48181306,197.58,197.57,20.86709427]
[1735078668839,3.1972,197.64,197.57,20.86709427]
[1735078669036,2.5324,197.59,197.57,20.86709427]
[1735078669742,2.5324,197.59,197.56,20.86709427]
[1735078670741,2.5324,197.59,197.57,4.05190281]
[1735078671538,2.5324,197.59,197.56,20.86709427]
[1735078672442,2.5326,197.57,197.56,20.86709427]
[1735078672940,2.5326,197.57,197.56,4.05132745]
[1735078673941,7.94931306,197.61,197.56,4.05132745]
[1735078674243,2.5324,197.59,197.56,4.05132745]
[1735078674740,2.5324,197.59,197.57,41.11084563]
[1735078675542,2.5324,197.59,197.58,4.05132745]
[1735078676839,2.5322,197.61,197.58,4.05132745]
[1735078677245,1.5912,197.64,197.58,4.05132745]
[1735078677447,2.5319,197.63,197.58,12.00064051]
[1735078677942,7.94931306,197.65,197.58,12.00064051]
[1735078678246,11.16931306,197.67,197.59,2.5323]
[1735078678446,1.16876249,197.69,197.6,7.94931306]
[1735078678642,2.5315,197.66,197.6,7.94931306]
[1735078679349,2.5315,197.66,197.62,20.86709427]
[1735078680448,2.5315,197.66,197.63,4.05132745]
[1735078681148,2.5315,197.66,197.62,20.86709427]
[1735078682042,2.5315,197.66,197.61,20.86709427]
[1735078682946,2.5315,197.66,197.62,4.04123619]
[1735078683145,2.5313,197.67,197.62,6.57313619]
[1735078683342,2.5313,197.67,197.62,14.52244925]
[1735078683548,2.5313,197.67,197.63,4.04123619]
[1735078683752,2.5313,197.68,197.63,6.57303619]
[1735078684741,2.5313,197.68,197.64,4.04123619]
[1735078685750,11.14931306,197.71,197.63,20.86709427]
[1735078685950,2.5314,197.67,197.63,20.86709427]
[1735078686752,2.5314,197.67,197.64,37.00489946]
[1735078687148,2.5314,197.67,197.64,44.95421252]
[1735078687549,2.5314,197.67,197.65,4.03291903]
[1735078688653,2.5314,197.67,197.63,20.86709427]
[1735078689353,2.5314,197.67,197.62,31.34830733]
[1735078690147,2.5314,197.67,197.63,4.02898534]
[1735078690647,2.5314,197.66,197.63,4.02898534]
[1735078691049,2.5314,197.66,197.62,20.86709427]
[1735078691252,7.94931306,197.7,197.62,20.86709427]
[1735078691653,7.94931306,197.68,197.62,20.86709427]
[1735078691952,7.94931306,197.68,197.61,20.86709427]
[1735078692752,2.5317,197.65,197.62,4.02608006]
[1735078693055,7.94931306,197.68,197.62,4.02608006]
[1735078693454,2.5317,197.65,197.61,20.86709427]
[1735078694652,2.5317,197.64,197.61,20.86709427]
[1735078695445,2.5317,197.64,197.62,4.02506393]
[1735078696050,7.94931306,197.68,197.62,4.02506393]
[1735078696354,2.5318,197.63,197.6,28.81640733]
[1735078696549,7.94931306,197.68,197.6,28.81640733]
[1735078697155,7.94931306,197.68,197.61,4.02508137]
[1735078697454,2.532,197.62,197.61,4.02508137]
[1735078697856,2.532,197.62,197.6,7.94931306]
[1735078699657,7.94931306,197.68,197.6,7.94931306]
[1735078699858,2.5321,197.61,197.6,7.94931306]
[1735078701059,2.5321,197.61,197.6,11.97391773]
[1735078702164,2.5321,197.62,197.6,11.97391773]
[1735078702962,2.5321,197.62,197.6,7.94931306]
[1735078703563,2.5321,197.62,197.61,4.02586379]
[1735078704563,7.94931306,197.66,197.59,20.86709427]
[1735078705367,7.94931306,197.66,197.58,28.81640733]
[1735078705761,2.5322,197.61,197.58,28.81640733]
[1735078705965,7.94931306,197.66,197.58,28.81640733]
[1735078706570,7.94931306,197.66,197.59,4.02918095]
[1735078707371,2.5321,197.61,197.58,7.94931306]
[1735078709970,7.94931306,197.64,197.58,7.94931306]
[1735078710166,2.5322,197.6,197.58,7.94931306]
[1735078710681,2.5322,197.6,197.59,4.03115862]
[1735078713279,2.5321,197.61,197.59,4.03115862]
[1735078714182,2.5321,197.61,197.58,28.81640733]
[1735078716077,2.5321,197.61,197.59,4.03022874]
[1735078716779,2.5321,197.61,197.58,28.81640733]
[1735078717077,2.5321,197.61,197.58,20.86709427]
[1735078717274,2.5321,197.61,197.58,28.81640733]
[1735078717780,2.5321,197.61,197.58,7.94931306]
[1735078718679,2.5321,197.61,197.57,20.86709427]
[1735078719479,2.5321,197.61,197.58,4.03212153]
[1735078720483,7.94931306,197.64,197.58,4.03212153]
[1735078720678,2.5324,197.59,197.57,28.81640733]
[1735078722176,2.5324,197.59,197.58,4.03302745]
[1735078723084,2.5324,197.59,197.58,41.03450456]
[1735078726784,2.5324,197.59,197.58,4.03302745]
[1735078728883,2.5322,197.6,197.58,11.98234051]
[1735078729084,1.5452,197.67,197.58,11.98234051]
[1735078729283,4.6396,197.71,197.63,7.94931306]
[1735078729583,12.58891306,197.71,197.63,7.94931306]
[1735078730283,3.12,197.7,197.63,7.94931306]
[1735078731489,2.5313,197.67,197.64,41.02434467]
[1735078732190,2.5313,197.67,197.65,4.03145008]
[1735078733089,2.5313,197.67,197.63,7.94931306]
[1735078733885,3.12,197.7,197.63,7.94931306]
[1735078734090,2.5315,197.66,197.63,7.94931306]
[1735078734384,1.6018,197.76,197.63,7.94931306]
[1735078734589,2.5312,197.68,197.63,10.48111306]
[1735078734891,7.94931306,197.72,197.63,7.94931306]
[1735078735588,7.94931306,197.72,197.64,4.0298391]
[1735078736289,7.94931306,197.7,197.65,4.0298391]
[1735078736486,1.5418,197.75,197.65,4.0298391]
[1735078736688,6.6957824,197.77,197.67,7.94931306]
[1735078736886,7.94931306,197.77,197.67,7.94931306]
[1735078737082,7.94931306,197.75,197.67,7.94931306]
[1735078737289,39.37609997,197.78,197.71,7.94931306]
[1735078737592,7.94931306,197.77,197.67,7.94931306]
[1735078738183,7.94931306,197.77,197.69,7.94931306]
[1735078738388,2.5303,197.75,197.71,7.94931306]
[1735078738688,2.5303,197.75,197.69,7.94931306]
[1735078739484,2.5303,197.75,197.69,10.48031306]
[1735078740187,7.94931306,197.77,197.68,20.86709427]
[1735078740390,7.94931306,197.77,197.68,28.81640733]
[1735078740690,36.25609997,197.78,197.68,28.81640733]
[1735078740891,2.5307,197.73,197.68,28.81640733]
[1735078741083,7.94931306,197.76,197.68,28.81640733]
[1735078741586,7.94931306,197.76,197.68,7.94931306]
[1735078742093,36.25609997,197.78,197.68,7.94931306]
[1735078742287,7.94931306,197.77,197.68,7.94931306]
[1735078742582,7.94931306,197.75,197.66,28.81640733]
[1735078742786,7.94931306,197.75,197.68,7.94931306]
[1735078742982,2.5308,197.71,197.65,78.0946348]
[1735078743301,7.94931306,197.75,197.66,7.94931306]
[1735078744093,2.5307,197.72,197.66,7.94931306]
[1735078744293,3.12,197.77,197.66,7.94931306]
[1735078744597,7.94931306,197.74,197.66,7.94931306]
[1735078744983,2.5309,197.7,197.66,7.94931306]
[1735078745283,7.94931306,197.74,197.64,20.86709427]
[1735078745483,2.5316,197.65,197.64,20.86709427]
[1735078746298,2.5316,197.65,197.59,7.94931306]
[1735078746487,2.5317,197.64,197.59,7.94931306]
[1735078746689,7.94931306,197.67,197.59,7.94931306]
[1735078747595,2.5318,197.64,197.59,7.94931306]
[1735078748698,2.5319,197.63,197.59,7.94931306]
[1735078749387,2.532,197.62,197.59,7.94931306]
[1735078750191,2.5321,197.61,197.59,7.94931306]
[1735078753303,7.94931306,197.67,197.59,7.94931306]
[1735078753593,2.5322,197.6,197.59,7.94931306]
[1735078755500,2.5322,197.6,197.56,23.39979427]
[1735078755699,2.5322,197.6,197.58,7.94931306]
[1735078755906,3.12,197.68,197.58,7.94931306]
[1735078756200,3.12,197.69,197.63,7.94931306]
[1735078756402,1.5628,197.71,197.63,7.94931306]
[1735078756602,2.5314,197.67,197.63,7.94931306]
[1735078757001,7.94931306,197.71,197.63,7.94931306]
[1735078757603,2.5312,197.68,197.63,7.94931306]
[1735078758204,2.5312,197.68,197.62,2.5319]
[1735078758503,2.5312,197.68,197.64,7.94931306]
[1735078759309,2.5312,197.68,197.62,10.48121306]
[1735078759507,2.5312,197.68,197.64,7.94931306]
[1735078762606,2.5312,197.68,197.62,10.48121306]
[1735078763305,7.94931306,197.71,197.62,10.48121306]
[1735078763502,2.5313,197.67,197.62,10.48121306]
[1735078764806,2.5313,197.67,197.61,20.86709427]
[1735078765108,2.5318,197.64,197.61,20.86709427]
[1735078765508,2.5318,197.64,197.62,3.97474479]
[1735078765809,7.94931306,197.69,197.62,3.97474479]
[1735078766108,7.94931306,197.69,197.61,20.86709427]
[1735078766912,7.94931306,197.69,197.62,7.94931306]
[1735078768007,2.5317,197.65,197.61,20.86709427]
[1735078768711,7.94931306,197.69,197.61,28.81640733]
[1735078768916,2.5318,197.64,197.62,3.97411005]
[1735078769807,2.5317,197.64,197.62,3.97411005]
[1735078770013,2.5317,197.64,197.6,32.94280733]
[1735078770912,2.5317,197.64,197.61,3.97455603]
[1735078771811,2.5317,197.64,197.6,9.54351306]
[1735078772012,2.5319,197.63,197.6,9.54351306]
[1735078774119,3.12,197.71,197.62,7.94931306]
[1735078774420,3.12,197.71,197.64,7.94931306]
[1735078774618,1.5665,197.72,197.64,7.94931306]
[1735078774619,4.6865,197.72,197.64,7.94931306]
[1735078776219,7.94931306,197.71,197.64,7.94931306]
[1735078776422,2.5313,197.68,197.64,7.94931306]
[1735078778421,2.5312,197.68,197.64,7.94931306]
[1735078779423,2.5309,197.7,197.66,7.94931306]
[1735078779623,3.12,197.74,197.68,7.94931306]
[1735078780622,3.12,197.73,197.64,20.86709427]
[1735078780821,3.12,197.73,197.65,7.94931306]
[1735078781223,3.12,197.73,197.64,20.86709427]
[1735078781423,2.5311,197.69,197.65,7.94931306]
[1735078782017,2.5311,197.69,197.66,3.98124543]
[1735078782823,2.5311,197.69,197.65,7.94931306]
[1735078783322,7.94931306,197.72,197.64,20.86709427]
[1735078783626,7.94931306,197.72,197.65,20.86709427]
[1735078784416,7.94931306,197.7,197.65,20.86709427]
[1735078784622,7.94931306,197.7,197.64,20.86709427]
[1735078785425,2.5317,197.65,197.62,20.86709427]
[1735078785719,7.94931306,197.7,197.62,20.86709427]
[1735078786422,7.94931306,197.7,197.63,3.98409137]
[1735078787021,7.94931306,197.7,197.64,3.98409137]
[1735078787526,2.5317,197.65,197.64,3.98409137]
[1735078787824,7.94931306,197.7,197.63,20.86709427]
[1735078788622,7.94931306,197.7,197.62,20.86709427]
[1735078789422,7.94931306,197.68,197.62,20.86709427]
[1735078789625,3.12,197.67,197.62,20.86709427]
[1735078789920,3.12,197.67,197.63,40.80279845]
[1735078791126,2.5318,197.63,197.62,20.86709427]
[1735078792027,2.5317,197.65,197.62,40.81671379]
[1735078792225,3.12,197.67,197.62,40.81671379]
[1735078792524,3.12,197.67,197.63,7.94931306]
[1735078793128,3.12,197.67,197.63,11.93923696]
[1735078793429,2.5318,197.64,197.63,11.93923696]
[1735078793840,2.5318,197.64,197.63,7.94931306]
[1735078795330,2.5318,197.63,197.62,20.86709427]
[1735078796436,2.5318,197.63,197.62,25.7114114]
[1735078796837,2.5318,197.63,197.62,4.84431713]
[1735078797429,3.12,197.67,197.6,20.86709427]
[1735078797635,3.12,197.67,197.6,7.94931306]
[1735078797834,3.12,197.67,197.61,4.842849]
[1735078798037,2.5315,197.66,197.62,4.842849]
[1735078798236,3.12,197.67,197.62,4.842849]
[1735078798435,3.12,197.67,197.63,4.842849]
[1735078798637,3.12,197.67,197.6,7.94931306]
[1735078798935,2.5321,197.62,197.61,4.84327733]
[1735078801839,2.5321,197.62,197.61,8.83018942]
[1735078802041,1.5659,197.69,197.61,8.83018942]
[1735078802240,1.5659,197.69,197.62,12.79259039]
[1735078802644,2.5315,197.66,197.63,4.84327733]
[1735078803042,1.5659,197.69,197.64,4.84327733]
[1735078803347,2.5316,197.65,197.62,11.93622515]
[1735078803545,2.5316,197.65,197.63,4.83902446]
[1735078803945,2.5316,197.65,197.64,4.83902446]
[1735078817149,2.5316,197.65,197.64,8.82717771]
[1735078817849,2.5316,197.65,197.64,4.83902446]
[1735078818248,7.94931306,197.68,197.62,20.86709427]
[1735078818445,2.5318,197.64,197.62,20.86709427]
[1735078818653,2.5318,197.64,197.63,20.86709427]
[1735078818848,2.5318,197.64,197.63,25.70836897]
[1735078819254,2.5318,197.64,197.63,45.66046145]
[1735078821948,10.48111306,197.64,197.63,45.66046145]
[1735078823056,10.48111306,197.64,197.63,4.8412747]
[1735078823252,2.5318,197.64,197.63,4.8412747]
[1735078824655,10.48111306,197.64,197.63,4.8412747]
[1735078824848,2.5321,197.61,197.6,20.86709427]
[1735078825247,2.5321,197.61,197.6,25.71288828]
[1735078825956,2.5321,197.61,197.6,45.68371205]
[1735078826659,2.5321,197.61,197.6,29.70705303]
[1735078826859,2.5321,197.61,197.6,8.83995876]
[1735078832063,2.5321,197.61,197.6,4.84579401]
[1735078834463,2.5321,197.61,197.6,8.83775899]
[1735078835263,2.5321,197.61,197.6,4.84579401]
[1735078836956,7.94931306,197.61,197.57,20.86709427]
[1735078837161,2.5325,197.58,197.57,20.86709427]
[1735078837361,2.5325,197.58,197.57,25.71432861]
[1735078838264,2.5325,197.58,197.57,4.84723434]
[1735078841467,13.60181306,197.58,197.57,4.84723434]
[1735078841668,2.5327,197.56,197.55,20.86709427]
[1735078841965,7.94931306,197.56,197.54,20.86709427]
[1735078842970,7.94931306,197.56,197.48,20.86709427]
[1735078843266,7.94931306,197.54,197.48,20.86709427]
[1735078843468,2.5336,197.49,197.48,20.86709427]
[1735078843767,3.12,197.5,197.46,20.86709427]
[1735078844063,3.12,197.49,197.46,20.86709427]
[1735078844666,3.12,197.49,197.45,55.68674053]
[1735078844667,2.534,197.46,197.44,24.12879427]
[1735078844861,2.534,197.46,197.44,22.50719427]
[1735078845567,3.12,197.49,197.42,20.86709427]
[1735078845568,2.5343,197.44,197.42,20.86709427]
[1735078845871,3.12,197.49,197.43,7.94931306]
[1735078846068,3.12,197.49,197.42,20.86709427]
[1735078846470,2.5339,197.47,197.42,20.86709427]
[1735078846670,3.12,197.49,197.41,28.81640733]
[1735078847364,7.94931306,197.48,197.41,28.81640733]
[1735078847772,7.94931306,197.48,197.41,7.94931306]
[1735078848470,2.5343,197.44,197.41,7.94931306]
[1735078849472,2.5344,197.43,197.41,7.94931306]
[1735078850865,7.94931306,197.48,197.39,4.6788]
[1735078851070,2.5348,197.4,197.39,3.1744]
[1735078853572,2.535,197.39,197.32,20.86709427]
[1735078853774,7.94931306,197.41,197.34,7.94931306]
[1735078854070,7.94931306,197.41,197.32,20.86709427]
[1735078854071,2.5348,197.4,197.36,7.94931306]
[1735078854972,11.06931306,197.43,197.36,7.94931306]
[1735078855174,2.5349,197.39,197.36,7.94931306]